fUST/lending_fUST_20250904
["ID","MTS","AMOUNT","RATE_DAILY","PERIOD"]
[383377453,1756917066589,-480.0,0.00015342,2]
[383377454,1756917066598,-480.0,0.00015342,2]
[383377455,1756917066607,-480.0,0.00015342,2]
[383377456,1756917066617,-480.0,0.00015342,2]
[383377457,1756917066627,-480.0,0.00015342,2]
[383377458,1756917066637,-185.21,0.00015342,2]
[383377459,1756917066646,-642.45,0.00015342,2]
[383377460,1756917066655,-480.0,0.00015342,2]
[383377461,1756917066665,-480.0,0.00015342,2]
[383377462,1756917066674,-604.23,0.00015342,2]
[383377463,1756917066683,-627.92,0.00015342,2]
[383377464,1756917066692,-480.0,0.00015342,2]
[383377465,1756917066701,-480.0,0.00015342,2]
[383377466,1756917066710,-191.45,0.00015342,2]
[383377467,1756917066720,-480.0,0.00015342,2]
[383377468,1756917066729,-480.0,0.00015342,2]
[383377469,1756917066739,-450.82,0.00015342,2]
[383377470,1756917066748,-203.86,0.00015342,2]
[383377471,1756917066757,-480.0,0.00015342,2]
[383377472,1756917066843,-480.0,0.00015342,2]
[383377473,1756917066854,-480.0,0.00015342,2]
[383377474,1756917066864,-480.0,0.00015342,2]
[383377475,1756917066874,-2000.0,0.00015342,2]
[383377476,1756917066884,-4234.4026637,0.00015515,2]
[383377477,1756917066895,-10943.3133198,0.00015516,2]
[383377478,1756917066904,-324.38,0.00015616,2]
[383377479,1756917066914,-480.0,0.00015616,2]
[383377480,1756917066923,-447.57,0.00015616,2]
[383377481,1756917066934,-480.0,0.00015616,2]
[383377482,1756917066944,-480.0,0.00015616,2]
[383377483,1756917066953,-480.0,0.00015616,2]
[383377484,1756917066964,-480.0,0.00015616,2]
[383377485,1756917066974,-286.52,0.00015616,2]
[383377486,1756917066985,-480.0,0.00015616,2]
[383377487,1756917066996,-278.81,0.00015616,2]
[383377488,1756917067007,-480.0,0.00015616,2]
[383377489,1756917067019,-320.53,0.00015616,2]
[383377490,1756917067030,-254.92,0.00015616,2]
[383377491,1756917067040,-480.0,0.00015616,2]
[383377492,1756917067050,-617.27,0.00015616,2]
[383377493,1756917067060,-813.89,0.00015616,2]
[383377494,1756917067070,-1006.74,0.00015616,2]
[383377495,1756917067079,-480.0,0.00015616,2]
[383377496,1756917067089,-480.0,0.00015616,2]
[383377497,1756917067099,-480.0,0.00015616,2]
[383377498,1756917067110,-480.0,0.00015616,2]
[383377499,1756917067120,-480.0,0.00015616,2]
[383377500,1756917067130,-480.0,0.00015616,2]
[383377501,1756917067139,-642.45,0.00015616,2]
[383377502,1756917067149,-480.0,0.00015616,2]
[383377503,1756917067159,-549.9462527,0.00015616,2]
[383377504,1756917067169,-627.92,0.00015616,2]
[383377505,1756917067179,-169.69,0.00015616,2]
[383377506,1756917067189,-212.36,0.00015616,2]
[383377507,1756917067198,-480.0,0.00015616,2]
[383377508,1756917067209,-480.0,0.00015616,2]
[383377509,1756917067218,-480.0,0.00015616,2]
[383377510,1756917067227,-480.0,0.00015616,2]
[383377511,1756917067237,-480.0,0.00015616,2]
[383377512,1756917067248,-3679.10448341,0.00015667,2]
[383377513,1756917067258,-975.0,0.00015668,2]
[383377514,1756917067267,-632.0,0.00015668,2]
[383377515,1756917067277,-2153.0,0.00015668,2]
[383377516,1756917067287,-409.0,0.00015668,2]
[383377517,1756917067297,-424.86,0.00015668,2]
[383377518,1756917067307,-150.0,0.00015823,2]
[383377519,1756917067316,-151.222,0.00015823,2]
[383377520,1756917067326,-195.869,0.00015823,2]
[383377521,1756917067335,-150.136,0.00015823,2]
[383377522,1756917067345,-220.947,0.00015823,2]
[383377523,1756917067354,-360.0,0.00015855,2]
[383377524,1756917067364,-480.0,0.0001589,2]
[383377525,1756917067373,-306.61119677,0.0001589,2]
[383377526,1756917067383,-480.0,0.0001589,2]
[383377527,1756917067393,-480.0,0.0001589,2]
[383377528,1756917067403,-614.45124969,0.0001589,2]
[383377529,1756917067413,-480.0,0.0001589,2]
[383377530,1756917067423,-480.0,0.0001589,2]
[383377531,1756917067433,-617.27,0.0001589,2]
[383377532,1756917067442,-813.89,0.0001589,2]
[383377533,1756917067452,-1006.74,0.0001589,2]
[383377534,1756917067462,-480.0,0.0001589,2]
[383377535,1756917067471,-480.0,0.0001589,2]
[383377536,1756917067481,-480.0,0.0001589,2]
[383377537,1756917067491,-480.0,0.0001589,2]
[383377538,1756917067501,-480.0,0.0001589,2]
[383377539,1756917067511,-558.83829321,0.0001589,2]
[383377540,1756917067522,-642.45,0.0001589,2]
[383377541,1756917067536,-480.0,0.0001589,2]
[383377542,1756917067546,-627.92,0.0001589,2]
[383377543,1756917067556,-480.0,0.0001589,2]
[383377544,1756917067567,-480.0,0.0001589,2]
[383377545,1756917067577,-480.0,0.0001589,2]
[383377546,1756917067586,-336.03,0.0001589,2]
[383377547,1756917067596,-160.9,0.0001589,2]
[383377548,1756917067606,-2500.0,0.0001589,2]
[383377549,1756917067616,-944.8229445,0.00015962,2]
[383377550,1756917067626,-587.0,0.00016095,2]
[383377551,1756917067635,-480.0,0.00016164,2]
[383377552,1756917067645,-480.0,0.00016164,2]
[383377553,1756917067655,-343.18,0.00016164,2]
[383377554,1756917067664,-480.0,0.00016164,2]
[383377555,1756917067674,-480.0,0.00016164,2]
[383377556,1756917067684,-617.27,0.00016164,2]
[383377557,1756917067693,-813.89,0.00016164,2]
[383377558,1756917067703,-1006.74,0.00016164,2]
[383377559,1756917067712,-480.0,0.00016164,2]
[383377560,1756917067722,-480.0,0.00016164,2]
[383377561,1756917067731,-436.10458118,0.00016164,2]
[383377562,1756917067741,-480.0,0.00016164,2]
[383377563,1756917067751,-480.0,0.00016164,2]
[383377564,1756917067760,-642.45,0.00016164,2]
[383377565,1756917067770,-480.0,0.00016164,2]
[383377566,1756917067781,-627.92,0.00016164,2]
[383377567,1756917067791,-480.0,0.00016164,2]
[383377568,1756917067802,-480.0,0.00016164,2]
[383377569,1756917067812,-480.0,0.00016164,2]
[383377570,1756917067823,-1920.0,0.0001618,2]
[383377571,1756917067834,-720.0,0.00016187,2]
[383377572,1756917067844,-999.999999,0.0001625,2]
[383377573,1756917067854,-460.0,0.00016403,2]
[383377574,1756917067864,-500.0,0.00016438,2]
[383377575,1756917067875,-500.0,0.00016438,2]
[383377576,1756917067885,-500.0,0.00016438,2]
[383377577,1756917067895,-478.59,0.00016438,2]
[383377578,1756917067905,-546.77,0.00016438,2]
[383377579,1756917067915,-480.0,0.00016438,2]
[383377580,1756917067926,-269.01,0.00016438,2]
[383377581,1756917067937,-480.0,0.00016438,2]
[383377582,1756917067947,-617.27,0.00016438,2]
[383377583,1756917067957,-813.89,0.00016438,2]
[383377584,1756917067967,-1006.74,0.00016438,2]
[383377585,1756917067977,-286.35221415,0.00016438,2]
[383377586,1756917067987,-480.0,0.00016438,2]
[383377587,1756917067997,-480.0,0.00016438,2]
[383377588,1756917068007,-480.0,0.00016438,2]
[383377589,1756917068019,-642.45,0.00016438,2]
[383377590,1756917068029,-480.0,0.00016438,2]
[383377591,1756917068040,-627.92,0.00016438,2]
[383377592,1756917068050,-480.0,0.00016438,2]
[383377593,1756917068060,-480.0,0.00016438,2]
[383377594,1756917068070,-480.0,0.00016438,2]
[383377595,1756917068080,-370.06302903,0.00016438,2]
[383377596,1756917068090,-300.0,0.00016438,2]
[383377597,1756917068100,-3000.0,0.00016438,2]
[383377598,1756917068110,-152.56864224,0.00016476,2]
[383377599,1756917068120,-503.58599564,0.00016699,2]
[383377600,1756917068131,-480.0,0.00016712,2]
[383377601,1756917068140,-481.00176293,0.00016712,2]
[383377602,1756917068150,-617.27,0.00016712,2]
[383377603,1756917068160,-813.89,0.00016712,2]
[383377604,1756917068171,-1006.74,0.00016712,2]
[383377605,1756917068181,-480.0,0.00016712,2]
[383377606,1756917068193,-480.0,0.00016712,2]
[383377607,1756917068203,-480.0,0.00016712,2]
[383377608,1756917068213,-642.45,0.00016712,2]
[383377609,1756917068223,-480.0,0.00016712,2]
[383377610,1756917068234,-627.92,0.00016712,2]
[383377611,1756917068245,-480.0,0.00016712,2]
[383377612,1756917068255,-543.78,0.00016712,2]
[383377613,1756917068265,-250.89232402,0.00016712,2]
[383377614,1756917068350,-864.0,0.0001678,2]
[383377615,1756917068361,-560.0,0.00016951,2]
[383377616,1756917068372,-152.56864224,0.00016986,2]
[383377617,1756917068382,-480.0,0.00016986,2]
[383377618,1756917068392,-617.27,0.00016986,2]
[383377619,1756917068403,-813.89,0.00016986,2]
[383377620,1756917068412,-1006.74,0.00016986,2]
[383377621,1756917068423,-480.0,0.00016986,2]
[383377622,1756917068433,-480.0,0.00016986,2]
[383377623,1756917068443,-480.0,0.00016986,2]
[383377624,1756917068453,-642.45,0.00016986,2]
[383377625,1756917068464,-480.0,0.00016986,2]
[383377626,1756917068475,-627.92,0.00016986,2]
[383377627,1756917068486,-480.0,0.00016986,2]
[383377628,1756917068497,-546.26028998,0.00016986,2]
[383377629,1756917068507,-3500.0,0.00016986,2]
[383377630,1756917068516,-462.314,0.00017031,2]
[383377631,1756917068529,-394.82,0.0001726,2]
[383377632,1756917068539,-617.27,0.0001726,2]
[383377633,1756917068549,-813.89,0.0001726,2]
[383377634,1756917068559,-1006.74,0.0001726,2]
[383377635,1756917068570,-480.0,0.0001726,2]
[383377636,1756917068580,-480.0,0.0001726,2]
[383377637,1756917068590,-188.51068984,0.0001726,2]
[383377638,1756917068600,-642.45,0.0001726,2]
[383377639,1756917068610,-480.0,0.0001726,2]
[383377640,1756917068621,-627.92,0.0001726,2]
[383377641,1756917068631,-480.0,0.0001726,2]
[383377642,1756917068642,-4552.24208122,0.00017394,2]
[383377643,1756917068653,-660.0,0.00017499,2]
[383377644,1756917068664,-152.56864224,0.00017511,2]
[383377645,1756917068674,-617.27,0.00017534,2]
[383377646,1756917068684,-813.89,0.00017534,2]
[383377647,1756917068694,-1006.74,0.00017534,2]
[383377648,1756917068705,-480.0,0.00017534,2]
[383377649,1756917068715,-230.61355276,0.00017534,2]
[383377650,1756917068725,-642.45,0.00017534,2]
[383377651,1756917068736,-480.0,0.00017534,2]
[383377652,1756917068747,-627.92,0.00017534,2]
[383377653,1756917068758,-480.0,0.00017534,2]
[383377654,1756917068768,-4000.0,0.00017534,2]
[383377655,1756917068778,-823.0,0.00017643,2]
[383377656,1756917068788,-617.27,0.00017808,2]
[383377657,1756917068799,-813.89,0.00017808,2]
[383377658,1756917068809,-1006.74,0.00017808,2]
[383377659,1756917068819,-295.13635388,0.00017808,2]
[383377660,1756917068830,-642.45,0.00017808,2]
[383377661,1756917068839,-480.0,0.00017808,2]
[383377662,1756917068849,-627.92,0.00017808,2]
[383377663,1756917068860,-480.0,0.00017808,2]
[383377664,1756917068870,-168.0,0.00017905,2]
[383377665,1756917068880,-3679.10448341,0.00017961,2]
[383377666,1756917068890,-760.0,0.00018047,2]
[383377667,1756917068900,-152.56864224,0.00018052,2]
[383377668,1756917068910,-617.27,0.00018082,2]
[383377669,1756917068921,-813.89,0.00018082,2]
[383377670,1756917068931,-1006.74,0.00018082,2]
[383377671,1756917068941,-642.45,0.00018082,2]
[383377672,1756917068951,-480.0,0.00018082,2]
[383377673,1756917068962,-627.92,0.00018082,2]
[383377674,1756917068972,-480.0,0.00018082,2]
[383377675,1756917068983,-4500.0,0.00018082,2]
[383377676,1756917068993,-168.0,0.00018216,2]
[383377677,1756917069004,-617.27,0.00018356,2]
[383377678,1756917069016,-813.89,0.00018356,2]
[383377679,1756917069026,-1006.74,0.00018356,2]
[383377680,1756917069036,-642.45,0.00018356,2]
[383377681,1756917069046,-480.0,0.00018356,2]
[383377682,1756917069057,-627.92,0.00018356,2]
[383377683,1756917069067,-480.0,0.00018356,2]
[383377684,1756917069078,-183.17268494,0.0001844,2]
[383377685,1756917069088,-1000.0,0.00018458,2]
[383377686,1756917069099,-860.0,0.00018595,2]
[383377687,1756917069111,-152.56864224,0.00018611,2]
[383377688,1756917069122,-617.27,0.0001863,2]
[383377689,1756917069133,-813.89,0.0001863,2]
[383377690,1756917069143,-1006.74,0.0001863,2]
[383377691,1756917069153,-642.45,0.0001863,2]
[383377692,1756917069163,-480.0,0.0001863,2]
[383377693,1756917069173,-627.92,0.0001863,2]
[383377694,1756917069184,-480.0,0.0001863,2]
[383377695,1756917069194,-5000.0,0.0001863,2]
[383377696,1756917069204,-409.0,0.00018668,2]
[383377697,1756917069216,-409.0,0.00018668,2]
[383377698,1756917069233,-160.0,0.00018729,3]
[383377699,1756917069243,-150.0,0.00018823,2]
[383377700,1756917069253,-150.0,0.00018823,2]
[383377701,1756917069264,-617.27,0.00018904,2]
[383377702,1756917069275,-813.89,0.00018904,2]
[383377703,1756917069287,-1006.74,0.00018904,2]
[383377704,1756917069297,-642.45,0.00018904,2]
[383377705,1756917069307,-480.0,0.00018904,2]
[383377706,1756917069318,-627.92,0.00018904,2]
[383377707,1756917069329,-480.0,0.00018904,2]
[383377708,1756917069339,-168.0,0.00018951,2]
[383377709,1756917069349,-168.0,0.00018979,2]
[383377710,1756917069359,-1000.0,0.00019,2]
[383377711,1756917069369,-1000.0,0.00019,2]
[383377712,1756917069380,-1000.0,0.00019,2]
[383377713,1756917069390,-1000.0,0.00019,2]
[383377714,1756917069401,-1000.0,0.00019,2]
[383377715,1756917069411,-1000.0,0.00019,2]
[383377716,1756917069423,-1000.0,0.00019,2]
[383377717,1756917069433,-1000.0,0.00019,2]
[383377718,1756917069443,-1000.0,0.00019,2]
[383377719,1756917069453,-168.0,0.00019109,2]
[383377720,1756917069463,-960.0,0.00019143,2]
[383377721,1756917069474,-617.27,0.00019178,2]
[383377722,1756917069483,-813.89,0.00019178,2]
[383377723,1756917069494,-1006.74,0.00019178,2]
[383377724,1756917069505,-642.45,0.00019178,2]
[383377725,1756917069516,-480.0,0.00019178,2]
[383377726,1756917069529,-627.92,0.00019178,2]
[383377727,1756917069541,-480.0,0.00019178,2]
[383377728,1756917069551,-200.0,0.00019178,2]
[383377729,1756917069561,-5500.0,0.00019178,2]
[383377730,1756917069570,-152.56864224,0.00019186,2]
[383377731,1756917069581,-447.5705717,0.0001926,2]
[383377732,1756917069591,-1152.0,0.00019341,2]
[383377733,1756917069601,-617.27,0.00019452,2]
[383377734,1756917069611,-813.89,0.00019452,2]
[383377735,1756917069621,-1006.74,0.00019452,2]
[383377736,1756917069631,-642.45,0.00019452,2]
[383377737,1756917069641,-309.72,0.00019452,2]
[383377738,1756917069654,-627.92,0.00019452,2]
[383377739,1756917069664,-480.0,0.00019452,2]
[383377740,1756917069674,-2900.0,0.0001952,2]
[383377741,1756917069685,-168.0,0.00019544,2]
[383377742,1756917069694,-168.0,0.00019559,2]
[383377743,1756917069704,-168.0,0.00019596,2]
[383377744,1756917069713,-168.0,0.00019607,2]
[383377745,1756917069796,-168.0,0.00019623,2]
[383377746,1756917069805,-160.0,0.00019672,4]
[383377747,1756917069815,-1060.0,0.00019691,2]
[383377748,1756917069825,-617.27,0.00019726,2]
[383377749,1756917069834,-813.89,0.00019726,2]
[383377750,1756917069844,-1006.74,0.00019726,2]
[383377751,1756917069854,-642.45,0.00019726,2]
[383377752,1756917069863,-627.92,0.00019726,2]
[383377753,1756917069874,-479.05655493,0.00019726,2]
[383377754,1756917069883,-539.87286276,0.00019726,2]
[383377755,1756917069892,-400.0,0.00019863,2]
[383377756,1756917069902,-168.0,0.00019883,2]
[383377757,1756917069911,-23778.67263664,0.000199,2]
[383377758,1756917069921,-3537.72888445,0.0002,20]
[383377759,1756917069930,-541.56641998,0.0002,2]
[383377760,1756917069940,-1500.0,0.0002,2]
[383377761,1756917069950,-1500.0,0.0002,2]
[383377762,1756917069960,-1500.0,0.0002,2]
[383377763,1756917069969,-1500.0,0.0002,2]
[383377764,1756917069979,-1500.0,0.0002,2]
[383377765,1756917069988,-1500.0,0.0002,2]
[383377766,1756917070000,-1886.28,0.0002,2]
[383377767,1756917070013,-1500.0,0.0002,2]
[383377768,1756917070023,-1500.0,0.0002,2]
[383377769,1756917070033,-1500.0,0.0002,2]
[383377770,1756917070042,-1500.0,0.0002,2]
[383377771,1756917070052,-16097.12423855,0.0002,2]
[383377772,1756917070062,-1190.74694894,0.0002,10]
[383377773,1756917070071,-150.0,0.0002,2]
[383377774,1756917070081,-160.0,0.0002,10]
[383377775,1756917070090,-4000.0,0.0002,5]
[383377776,1756917070100,-176.167615,0.0002,7]
[383377777,1756917070110,-617.30133903,0.0002,2]
[383377778,1756917070120,-814.04487142,0.0002,2]
[383377779,1756917070130,-1006.97095937,0.0002,2]
[383377780,1756917070139,-300.0,0.0002,2]
[383377781,1756917070149,-642.66182746,0.0002,2]
[383377782,1756917070159,-628.08588948,0.0002,2]
[383377783,1756917070168,-4000.0,0.0002,4]
[383377784,1756917070177,-168.0,0.00020014,2]
[383377785,1756917070187,-970.0,0.000201,4]
[383377786,1756917070197,-168.0,0.00020176,2]
[383377787,1756917070206,-679.953634,0.00020187,2]
[383377788,1756917070215,-168.0,0.00020209,2]
[383377789,1756917070225,-168.0,0.00020214,2]
[383377790,1756917070235,-861.1878846,0.00020219,2]
[383377791,1756917070247,-1160.0,0.00020239,2]
[383377792,1756917070256,-3679.10448341,0.00020255,2]
[383377793,1756917070266,-1442.81,0.00020273,2]
[383377794,1756917070275,-168.0,0.00020277,2]
[383377795,1756917070285,-168.0,0.00020303,2]
[383377796,1756917070295,-1000.0,0.00020304,20]
[383377797,1756917070304,-244.0,0.00020304,20]
[383377798,1756917070313,-168.0,0.00020525,2]
[383377799,1756917070323,-1442.81,0.00020547,2]
[383377800,1756917070333,-3368.918042,0.00020548,2]
[383377801,1756917070343,-600.0,0.00020548,2]
[383377802,1756917070353,-160.0,0.00020615,5]
[383377803,1756917070362,-2900.0,0.00020616,2]
[383377804,1756917070372,-10943.3133198,0.0002063,2]
[383377805,1756917070382,-1260.0,0.00020787,2]
[383377806,1756917070392,-1442.81,0.00020821,2]
[383377807,1756917070401,-154.2273425,0.00020828,2]
[383377808,1756917070411,-153.0,0.00020828,2]
[383377809,1756917070423,-153.0,0.00020828,2]
[383377810,1756917070441,-153.0,0.00020828,2]
[383377811,1756917070451,-153.0,0.00020828,2]
[383377812,1756917070460,-153.0,0.00020828,2]
[383377813,1756917070470,-153.0,0.00020828,2]
[383377814,1756917070479,-251.84467937,0.000209,2]
[383377815,1756917070489,-272.16786987,0.00021,2]
[383377816,1756917070499,-203.6000531,0.00021,2]
[383377817,1756917070509,-324.16671006,0.00021,2]
[383377818,1756917070519,-685.18669759,0.00021,10]
[383377819,1756917070534,-10000.0,0.00021,5]
[383377820,1756917070544,-3000.0,0.00021,2]
[383377821,1756917070554,-4000.0,0.00021,4]
[383377822,1756917070563,-3000.0,0.0002101,2]
[383377823,1756917070573,-3000.0,0.0002102,2]
[383377824,1756917070583,-3000.0,0.0002103,2]
[383377825,1756917070592,-3000.0,0.0002104,2]
[383377826,1756917070602,-3000.0,0.0002105,2]
[383377827,1756917070611,-3000.0,0.0002106,2]
[383377828,1756917070621,-3000.0,0.0002107,2]
[383377829,1756917070632,-388.2840251,0.00021073,2]
[383377830,1756917070641,-3000.0,0.0002108,2]
[383377831,1756917070654,-3000.0,0.0002109,2]
[383377832,1756917070664,-1442.81,0.00021095,2]
[383377833,1756917070673,-3000.0,0.000211,2]
[383377834,1756917070683,-3000.0,0.0002111,2]
[383377835,1756917070692,-3000.0,0.0002112,2]
[383377836,1756917070702,-3000.0,0.0002113,2]
[383377837,1756917070711,-3000.0,0.0002114,2]
[383377838,1756917070721,-3000.0,0.0002115,2]
[383377839,1756917070731,-3000.0,0.0002116,2]
[383377840,1756917070741,-151.27311453,0.00021166,2]
[383377841,1756917070751,-3000.0,0.0002117,2]
[383377842,1756917070760,-3000.0,0.0002118,2]
[383377843,1756917070770,-3000.0,0.0002119,2]
[383377844,1756917070779,-3000.0,0.000212,2]
[383377845,1756917070789,-1518.0,0.00021202,2]
[383377846,1756917070798,-3000.0,0.0002121,2]
[383377847,1756917070808,-3000.0,0.0002122,2]
[383377848,1756917070818,-3000.0,0.0002123,2]
[383377849,1756917070827,-366.68456355,0.00021233,2]
[383377850,1756917070837,-3000.0,0.0002124,2]
[383377851,1756917070846,-3000.0,0.0002125,2]
[383377852,1756917070856,-3000.0,0.0002126,2]
[383377853,1756917070865,-3000.0,0.0002127,2]
[383377854,1756917070874,-3000.0,0.0002128,2]
[383377855,1756917070884,-3000.0,0.0002129,2]
[383377856,1756917070893,-4552.24208122,0.0002129,2]
[383377857,1756917070902,-3000.0,0.000213,2]
[383377858,1756917070912,-3000.0,0.0002131,2]
[383377859,1756917070921,-3000.0,0.0002132,2]
[383377860,1756917070930,-3000.0,0.0002133,2]
[383377861,1756917070940,-1360.0,0.00021335,2]
[383377862,1756917070949,-3000.0,0.0002134,2]
[383377863,1756917070959,-3000.0,0.0002135,2]
[383377864,1756917070968,-3000.0,0.0002136,2]
[383377865,1756917071047,-1442.81,0.00021369,2]
[383377866,1756917071057,-3000.0,0.0002137,2]
[383377867,1756917071067,-3000.0,0.0002138,2]
[383377868,1756917071076,-23778.67263638,0.00021389,2]
[383377869,1756917071086,-3000.0,0.0002139,2]
[383377870,1756917071095,-3000.0,0.000214,2]
[383377871,1756917071104,-800.0,0.00021401,2]
[383377872,1756917071114,-3000.0,0.0002141,2]
[383377873,1756917071123,-3000.0,0.0002142,2]
[383377874,1756917071132,-3000.0,0.0002143,2]
[383377875,1756917071142,-3783.834886,0.0002144,2]
[383377876,1756917071151,-12621.0675862,0.000215,2]
[383377877,1756917071160,-800.0,0.00021527,2]
[383377878,1756917071170,-160.0,0.00021557,6]
[383377879,1756917071179,-1442.81,0.00021643,2]
[383377880,1756917071191,-170.968,0.00021668,2]
[383377881,1756917071200,-409.0,0.00021668,2]
[383377882,1756917071210,-2900.0,0.00021712,2]
[383377883,1756917071219,-800.0,0.00021815,2]
[383377884,1756917071229,-150.0,0.00021823,2]
[383377885,1756917071239,-1460.0,0.00021883,2]
[383377886,1756917071249,-1442.81,0.00021917,2]
[383377887,1756917071258,-680.92,0.00021917,2]
[383377888,1756917071267,-680.92,0.00021917,2]
[383377889,1756917071277,-680.92,0.00021917,2]
[383377890,1756917071286,-680.92,0.00021917,2]
[383377891,1756917071296,-680.92,0.00021917,2]
[383377892,1756917071306,-680.92,0.00021917,2]
[383377893,1756917071315,-680.92,0.00021917,2]
[383377894,1756917071325,-680.92,0.00021917,2]
[383377895,1756917071334,-680.92,0.00021917,2]
[383377896,1756917071344,-680.92,0.00021917,2]
[383377897,1756917071353,-680.92,0.00021917,2]
[383377898,1756917071363,-680.92,0.00021917,2]
[383377899,1756917071372,-680.92,0.00021917,2]
[383377900,1756917071382,-680.92,0.00021917,2]
[383377901,1756917071391,-680.92,0.00021917,2]
[383377902,1756917071401,-680.92,0.00021917,2]
[383377903,1756917071411,-680.92,0.00021917,2]
[383377904,1756917071420,-680.92,0.00021917,2]
[383377905,1756917071433,-680.92,0.00021917,2]
[383377906,1756917071442,-680.92,0.00021917,2]
[383377907,1756917071452,-680.92,0.00021917,2]
[383377908,1756917071461,-680.92,0.00021917,2]
[383377909,1756917071470,-680.92,0.00021917,2]
[383377910,1756917071480,-681.0496204,0.00021917,2]
[383377911,1756917071490,-1470.4256857,0.00021918,7]
[383377912,1756917071499,-152.65381,0.00021918,2]
[383377913,1756917071509,-1700.576975,0.00021918,2]
[383377914,1756917071518,-1488.434563,0.00021918,2]
[383377915,1756917071531,-1488.434563,0.00021918,2]
[383377916,1756917071541,-1488.434563,0.00021918,2]
[383377917,1756917071550,-1488.434563,0.00021918,2]
[383377918,1756917071560,-1488.434563,0.00021918,2]
[383377919,1756917071570,-1488.434563,0.00021918,2]
[383377920,1756917071581,-1488.434563,0.00021918,2]
[383377921,1756917071602,-1488.434563,0.00021918,2]
[383377922,1756917071622,-1488.434563,0.00021918,2]
[383377923,1756917071641,-1488.434563,0.00021918,2]
[383377924,1756917071662,-1488.434563,0.00021918,2]
[383377925,1756917071682,-1488.434563,0.00021918,2]
[383377926,1756917071698,-1488.434563,0.00021918,2]
[383377927,1756917071719,-1488.434563,0.00021918,2]
[383377928,1756917071734,-1488.434563,0.00021918,2]
[383377929,1756917071752,-1488.434563,0.00021918,2]
[383377930,1756917071773,-1488.434563,0.00021918,2]
[383377931,1756917071791,-1488.434563,0.00021918,2]
[383377932,1756917071806,-1488.434563,0.00021918,2]
[383377933,1756917071826,-1488.43455772,0.00021918,2]
[383377934,1756917071842,-150.0,0.00021918,2]
[383377935,1756917071857,-151.0,0.00021918,2]
[383377936,1756917071872,-151.0,0.00021918,2]
[383377937,1756917071886,-151.0,0.00021918,2]
[383377938,1756917071901,-151.0,0.00021918,2]
[383377939,1756917071915,-151.0,0.00021918,2]
[383377940,1756917071930,-151.0,0.00021918,2]
[383377941,1756917071945,-151.0,0.00021918,2]
[383377942,1756917071960,-151.0,0.00021918,2]
[383377943,1756917071976,-151.0,0.00021918,2]
[383377944,1756917071991,-151.0,0.00021918,2]
[383377945,1756917072006,-355.40081266,0.00022,2]
[383377946,1756917072022,-100000.23866787,0.00022,5]
[383377947,1756917072037,-445.87,0.00022,7]
[383377948,1756917072053,-500.0,0.00022,7]
[383377949,1756917072070,-415.02,0.00022,3]
[383377950,1756917072080,-500.0,0.00022,7]
[383377951,1756917072090,-103867.36,0.00022,7]
[383377952,1756917072100,-17971.38,0.00022,7]